fUSD/lending_fUSD_20240426
["ID","MTS","AMOUNT","RATE_DAILY","PERIOD"]
[323609991,1714116638062,-500.0,0.00011857,2]
[323609992,1714116638071,-3499.79,0.00011857,2]
[323609993,1714116638080,-500.0,0.00011857,2]
[323609994,1714116638089,-500.0,0.00011857,2]
[323609995,1714116638098,-500.0,0.00011857,2]
[323609996,1714116638108,-500.0,0.00011857,2]
[323609997,1714116638117,-500.0,0.00011857,2]
[323609998,1714116638126,-500.0,0.00011857,2]
[323609999,1714116638135,-155.0,0.00011857,2]
[323610000,1714116638144,-196.11365433,0.00011857,2]
[323610001,1714116638154,-500.0,0.00011857,2]
[323610002,1714116638163,-155.87256437,0.00011858,2]
[323610003,1714116638173,-1810.64064994,0.00011858,2]
[323610004,1714116638182,-497.70685094,0.00011858,2]
[323610005,1714116638191,-500.0,0.00011858,2]
[323610006,1714116638201,-500.0,0.00011858,2]
[323610007,1714116638210,-150.0,0.00011858,2]
[323610008,1714116638221,-500.0,0.00011858,2]
[323610009,1714116638232,-500.0,0.00011858,2]
[323610010,1714116638241,-500.0,0.00011858,2]
[323610011,1714116638250,-500.0,0.00011858,2]
[323610012,1714116638261,-500.0,0.00011858,2]
[323610013,1714116638270,-500.0,0.00011858,2]
[323610014,1714116638279,-500.0,0.00011858,2]
[323610015,1714116638528,-591.23,0.00011858,2]
[323610016,1714116638537,-500.0,0.00011858,2]
[323610017,1714116638546,-500.0,0.00011858,2]
[323610018,1714116638554,-500.0,0.00011858,2]
[323610019,1714116638563,-623.88,0.00011858,2]
[323610020,1714116638572,-500.0,0.00011858,2]
[323610021,1714116638580,-500.0,0.00011858,2]
[323610022,1714116638587,-500.0,0.00011858,2]
[323610023,1714116638596,-512.52,0.00011858,2]
[323610024,1714116638604,-500.0,0.00011858,2]
[323610025,1714116638612,-529.43,0.00011858,2]
[323610026,1714116638620,-678.27,0.00011858,2]
[323610027,1714116638628,-500.0,0.00011858,2]
[323610028,1714116638636,-500.0,0.00011858,2]
[323610029,1714116638644,-500.0,0.00011858,2]
[323610030,1714116638652,-500.0,0.00011858,2]
[323610031,1714116638660,-1348.65,0.00011858,2]
[323610032,1714116638668,-500.0,0.00011858,2]
[323610033,1714116638676,-500.0,0.00011858,2]
[323610034,1714116638685,-500.0,0.00011858,2]
[323610035,1714116638694,-500.0,0.00011858,2]
[323610036,1714116638703,-500.0,0.00011858,2]
[323610037,1714116638712,-706.7,0.00011858,2]
[323610038,1714116638723,-500.0,0.00011858,2]
[323610039,1714116638733,-500.0,0.00011858,2]
[323610040,1714116638744,-1551.59,0.00011858,2]
[323610041,1714116638753,-500.0,0.00011858,2]
[323610042,1714116638764,-500.0,0.00011858,2]
[323610043,1714116638774,-2198.01,0.00011858,2]
[323610044,1714116638783,-500.0,0.00011858,2]
[323610045,1714116638793,-285.28211173,0.00011858,3]
[323610068,1714116642840,-204.99865099,0.0001185,2]
[323610069,1714116642850,-8456.96788827,0.00011858,3]
[323610070,1714116642859,-5402.08346101,0.00011858,3]
[323610071,1714116642893,-451.948092,0.00011858,3]
[323610072,1714116642949,-2888.21844699,0.00011858,3]
[323610073,1714116642958,-3558.68155301,0.00011858,3]
[323610077,1714116645871,-356.4561,0.00011858,3]
[323610079,1714116908250,-429.33,9.594e-05,2]
[323610080,1714116908271,-2523.31506596,0.00011099,2]
[323610081,1714116908295,-172.67,0.00011199,2]
[323610082,1714116908317,-153.71,0.00011245,2]
[323610083,1714116908339,-500.0,0.00011274,2]
[323610084,1714116908361,-539.74,0.0001145,2]
[323610085,1714116908382,-736.23493404,0.00011621,2]
[323610086,1714117128906,-1430.07,0.00011101,2]
[323610087,1714117128932,-200.0,0.00011101,2]
[323610088,1714117128955,-251.99,0.00011131,2]
[323610089,1714117128983,-1507.74,0.00011199,2]
[323610090,1714117129007,-23890.0,0.00011236,2]
[323610091,1714117129030,-622.9016,0.0001135,2]
[323610092,1714117129056,-159.82229971,0.00011579,2]
[323610093,1714117129081,-413.08830821,0.00011621,2]
[323610094,1714117129104,-1120.70601303,0.00011621,2]
[323610095,1714117129128,-4285.33663635,0.00011679,2]
[323610096,1714117129151,-150.0,0.00011739,2]
[323610097,1714117129175,-150.0,0.00011739,2]
[323610098,1714117129197,-1902.48678,0.0001174,2]
[323610099,1714117129221,-499.99,0.0001174,2]
[323610100,1714117129243,-538.29,0.0001174,2]
[323610101,1714117129266,-153.71,0.00011831,2]
[323610102,1714117129288,-155.0,0.00011857,2]
[323610103,1714117129312,-156.77776853,0.00011857,2]
[323610104,1714117129337,-302.60214322,0.00011857,2]
[323610105,1714117129360,-500.0,0.00011857,2]
[323610106,1714117129383,-150.0,0.00011857,2]
[323610107,1714117129406,-500.0,0.00011857,2]
[323610108,1714117129430,-500.0,0.00011857,2]
[323610109,1714117129453,-586.50476831,0.00011857,2]
[323610110,1714117129476,-500.0,0.00011857,2]
[323610111,1714117129499,-566.59,0.00011857,2]
[323610112,1714117129523,-500.0,0.00011857,2]
[323610113,1714117129545,-500.0,0.00011857,2]
[323610114,1714117129569,-500.0,0.00011857,2]
[323610115,1714117129592,-500.0,0.00011857,2]
[323610116,1714117129615,-597.89,0.00011857,2]
[323610117,1714117129639,-479.13147641,0.00011857,2]
[323610118,1714117129664,-500.0,0.00011857,2]
[323610119,1714117129689,-500.0,0.00011857,2]
[323610120,1714117129711,-500.0,0.00011857,2]
[323610121,1714117129732,-500.0,0.00011857,2]
[323610122,1714117129755,-677.25,0.00011857,2]
[323610123,1714117129779,-500.0,0.00011857,2]
[323610124,1714117129801,-500.0,0.00011857,2]
[323610125,1714117129828,-500.0,0.00011857,2]
[323610126,1714117129849,-500.0,0.00011857,2]
[323610127,1714117129873,-1515.26,0.00011857,2]
[323610128,1714117129899,-243.23768234,0.00011857,2]
[323610129,1714117129923,-500.0,0.00011857,2]
[323610130,1714117129946,-429.33,0.00011857,2]
[323610131,1714117129968,-500.0,0.00011858,2]
[323610132,1714117129990,-260.35,0.00011858,2]
[323610133,1714117130012,-502.57389938,0.00011858,2]
[323610134,1714117130033,-500.7036542,0.00011858,2]
[323610135,1714117130057,-500.0,0.00011858,2]
[323610136,1714117130079,-502.40683641,0.00011858,2]
[323610137,1714117130103,-500.0,0.00011858,2]
[323610138,1714117130126,-501.28820385,0.00011858,2]
[323610139,1714117130148,-499.35544536,0.00011858,2]
[323610140,1714117130171,-500.61814308,0.00011858,2]
[323610141,1714117130411,-536.76167325,0.00011858,2]
[323610142,1714117130437,-500.0,0.00011858,2]
[323610143,1714117130461,-871.11,0.00011858,2]
[323610144,1714117130485,-741.1,0.00011858,2]
[323610145,1714117130509,-673.25,0.00011858,2]
[323610146,1714117130533,-500.0,0.00011858,2]
[323610147,1714117130556,-500.0,0.00011858,2]
[323610148,1714117130580,-500.0,0.00011858,2]
[323610149,1714117130605,-587.93,0.00011858,2]
[323610150,1714117130628,-657.07,0.00011858,2]
[323610151,1714117130654,-500.0,0.00011858,2]
[323610152,1714117130680,-1816.73,0.00011858,2]
[323610153,1714117130703,-500.0,0.00011858,2]
[323610154,1714117130727,-500.0,0.00011858,2]
[323610155,1714117130751,-500.0,0.00011858,2]
[323610156,1714117130774,-837.78,0.00011858,2]
[323610157,1714117130798,-500.0,0.00011858,2]
[323610158,1714117130821,-500.0,0.00011859,2]
[323610159,1714117130844,-500.0,0.00011859,2]
[323610160,1714117130868,-500.0,0.00011859,2]
[323610161,1714117130892,-500.0,0.00011859,2]
[323610162,1714117130916,-500.0,0.00011859,2]
[323610163,1714117130942,-885.54,0.00011859,2]
[323610164,1714117130967,-650.01,0.00011859,2]
[323610165,1714117130991,-500.0,0.00011859,2]
[323610166,1714117131015,-500.0,0.00011859,2]
[323610167,1714117131044,-500.0,0.00011859,2]
[323610168,1714117131069,-1292.46,0.00011859,2]
[323610169,1714117131094,-500.0,0.00011859,2]
[323610170,1714117131119,-500.0,0.00011859,2]
[323610171,1714117131142,-500.0,0.00011859,2]
[323610172,1714117131165,-500.0,0.00011859,2]
[323610173,1714117131189,-500.0,0.00011859,2]
[323610174,1714117131214,-500.0,0.00011859,2]
[323610175,1714117131239,-2106.43,0.00011859,2]
[323610176,1714117131263,-7850.6,0.00011859,3]
[323610177,1714117131286,-7850.6,0.00011859,3]
[323610178,1714117131310,-7850.6,0.00011859,3]
[323610179,1714117131334,-7850.6,0.00011859,3]
[323610180,1714117131359,-7850.6,0.00011859,3]
[323610181,1714117131382,-7850.6,0.00011859,3]
[323610182,1714117131406,-7850.6,0.00011859,3]
[323610183,1714117131429,-7850.6,0.00011859,3]
[323610184,1714117131452,-7850.6,0.00011859,3]
[323610185,1714117131477,-7850.6,0.00011859,3]
[323610186,1714117131500,-7850.6,0.00011859,3]
[323610187,1714117131524,-7850.6,0.00011859,3]
[323610188,1714117131549,-7850.6,0.00011859,3]
[323610189,1714117131573,-7850.6,0.00011859,3]
[323610190,1714117131597,-7850.6,0.00011859,3]
[323610191,1714117131621,-7850.6,0.00011859,3]
[323610192,1714117131646,-7850.6,0.00011859,3]
[323610193,1714117131671,-7850.6,0.00011859,3]
[323610194,1714117131696,-7850.6,0.00011859,3]
[323610195,1714117131721,-7850.6,0.00011859,3]
[323610196,1714117131745,-7850.6,0.00011859,3]
[323610197,1714117131769,-7850.6,0.00011859,3]
[323610198,1714117131794,-7850.6,0.00011859,3]
[323610199,1714117131818,-7850.70398195,0.00011859,3]
[323610200,1714117131842,-500.0,0.00011859,2]
[323610201,1714117131866,-500.0,0.00011859,2]
[323610202,1714117131891,-1277.41,0.00011859,2]
[323610203,1714117131914,-229.06583933,0.00011859,2]
[323610204,1714117131940,-500.0,0.00011859,2]
[323610205,1714117131963,-381235.95294705,0.0001186,2]
[323610206,1714117131986,-354.16,0.0001186,2]
[323610207,1714117132010,-3694.0,0.00011885,2]
[323610208,1714117132036,-5000.0,0.00012,2]
[323610209,1714117132065,-2226.73390003,0.00012,3]
[323610220,1714117831751,-164.56610588,8.707e-05,2]
[323610221,1714117831763,-268.25676551,8.707e-05,2]
[323610222,1714117831771,-343.45911395,8.708e-05,2]
[323610223,1714117831780,-370.12698549,8.709e-05,2]
[323610224,1714117831789,-155.0,8.709e-05,2]
[323610225,1714117831798,-157.30304109,8.71e-05,2]
[323610226,1714117831807,-155.0,8.71e-05,2]
[323610227,1714117831816,-236.60615508,8.711e-05,2]
[323610228,1714117831825,-515.39737563,8.711e-05,2]
[323610229,1714117831836,-2898.99423103,8.711e-05,2]
[323610230,1714117831844,-323.0243529,8.711e-05,2]
[323610231,1714117831853,-155.0,8.712e-05,2]
[323610232,1714117831861,-425.59,8.718e-05,2]
[323610233,1714117831869,-616.96407808,9.565e-05,2]
[323610234,1714117831897,-1241.13372192,9.565e-05,2]
[323610235,1714117831905,-221.10841659,9.736e-05,2]
[323610236,1714117831916,-656.10899353,9.736e-05,2]
[323610237,1714117831926,-8022.34393355,9.736e-05,2]
[323610238,1714117831935,-5000.0,9.736e-05,2]
[323610239,1714117831943,-5000.0,9.736e-05,2]
[323610240,1714117831952,-5000.0,9.736e-05,2]
[323610241,1714117831960,-5000.0,9.736e-05,2]
[323610242,1714117831969,-6153.29,0.0001,2]
[323610243,1714117831976,-204.03131332,0.0001,2]
[323610244,1714117831982,-155.0,0.0001054,2]
[323610245,1714117831989,-956.28,0.00010541,2]
[323610246,1714117831996,-2604.98,0.00010813,2]
[323610247,1714117832004,-1500.0,0.00010885,2]
[323610248,1714117832014,-500.0,0.00010959,2]
[323610249,1714117832023,-425.59,0.00010982,2]
[323610250,1714117832031,-941.97185229,0.00011,2]
[323610251,1714117832040,-175.87,0.00011134,2]
[323610252,1714117832049,-351.74,0.00011445,2]
[323610253,1714117832058,-16093.98023012,0.00011542,2]
[323610294,1714117838016,-236.60615508,8.706e-05,2]
[323610296,1714117838027,-155.0,8.707e-05,2]
[323610298,1714117838036,-155.0,8.707e-05,2]
[323610300,1714117838045,-298.41384492,0.00011542,2]
[323610303,1714117838069,-378.88143139,0.00011542,2]
[323610308,1714117838178,-2258.50604972,0.00011542,2]
[323610309,1714117838188,-431.79,0.00011627,2]
[323610310,1714117838198,-3594.90395004,0.0001166,2]
[323610311,1714117839853,-450.01300863,0.0001166,2]
[323610312,1714117840014,-1486.19828698,0.0001166,2]
[323610335,1714117842965,-1835.89565874,0.0001166,2]
[323610336,1714117843021,-1124.81695055,0.0001166,2]
[323610337,1714117843297,-3976.52354506,0.0001166,2]
[323610340,1714117843369,-1991.14,0.00011757,2]
[323610342,1714117843378,-1120.80042299,0.0001176,2]
[323610344,1714117843388,-500.0,0.00011857,2]
[323610345,1714117843397,-500.0,0.00011857,2]
[323610346,1714117843409,-500.0,0.00011857,2]
[323610347,1714117843419,-500.0,0.00011857,2]
[323610348,1714117843428,-500.0,0.00011857,2]
[323610349,1714117843438,-500.0,0.00011857,2]
[323610350,1714117843448,-326.03854606,0.00011857,2]
[323610351,1714117843458,-500.0,0.00011857,2]
[323610352,1714117843468,-500.0,0.00011857,2]
[323610353,1714117843477,-500.0,0.00011857,2]
[323610354,1714117843486,-500.0,0.00011857,2]
[323610355,1714117843495,-500.0,0.00011857,2]
[323610356,1714117843504,-500.0,0.00011857,2]
[323610357,1714117843515,-500.0,0.00011857,2]
[323610358,1714117843524,-500.0,0.00011857,2]
[323610359,1714117843533,-500.0,0.00011857,2]
[323610360,1714117843542,-500.0,0.00011857,2]
[323610361,1714117843551,-500.0,0.00011857,2]
[323610362,1714117843559,-500.0,0.00011857,2]
[323610363,1714117843568,-500.0,0.00011857,2]
[323610364,1714117843577,-500.0,0.00011857,2]
[323610365,1714117843586,-503.61587401,0.00011857,2]
[323610366,1714117843595,-500.0,0.00011857,2]
[323610367,1714117843605,-500.0,0.00011857,2]
[323610368,1714117843614,-500.0,0.00011857,2]
[323610369,1714117843622,-500.0,0.00011857,2]
[323610370,1714117843632,-500.0,0.00011857,2]
[323610371,1714117843641,-500.0,0.00011857,2]
[323610372,1714117843651,-500.0,0.00011857,2]
[323610373,1714117843660,-500.0,0.00011857,2]
[323610374,1714117843669,-500.0,0.00011857,2]
[323610375,1714117843679,-500.0,0.00011857,2]
[323610376,1714117843688,-500.0,0.00011857,2]
[323610377,1714117843697,-500.0,0.00011857,2]
[323610378,1714117843705,-500.0,0.00011857,2]
[323610379,1714117843715,-505.57981493,0.00011857,2]
[323610380,1714117843725,-500.0,0.00011857,2]
[323610381,1714117843735,-500.0,0.00011857,2]
[323610382,1714117843746,-500.0,0.00011857,2]
[323610383,1714117843755,-500.0,0.00011857,2]
[323610384,1714117843766,-500.0,0.00011857,2]
[323610385,1714117843775,-500.0,0.00011857,2]
[323610386,1714117843784,-500.0,0.00011857,2]
[323610387,1714117843793,-500.0,0.00011857,2]
[323610388,1714117843803,-571.31,0.00011857,2]
[323610389,1714117843815,-500.0,0.00011858,2]
[323610390,1714117843824,-500.0,0.00011858,2]
[323610391,1714117843833,-150.0,0.00011858,2]
[323610392,1714117843842,-500.0,0.00011858,2]
[323610393,1714117843851,-500.0,0.00011858,2]
[323610394,1714117843860,-500.0,0.00011858,2]
[323610395,1714117843870,-500.0,0.00011858,2]
[323610396,1714117843879,-500.0,0.00011858,2]
[323610397,1714117843888,-500.0,0.00011858,2]
[323610398,1714117843897,-500.0,0.00011858,2]
[323610399,1714117843907,-500.0,0.00011858,2]
[323610400,1714117843916,-500.0,0.00011858,2]
[323610401,1714117843925,-500.0,0.00011858,2]
[323610402,1714117843933,-500.0,0.00011858,2]
[323610403,1714117843942,-525.1,0.00011858,2]
[323610404,1714117843951,-500.0,0.00011858,2]
[323610405,1714117843961,-500.0,0.00011858,2]
[323610406,1714117843970,-500.0,0.00011858,2]
[323610407,1714117843979,-504.3842173,0.00011858,2]
[323610408,1714117843989,-500.0,0.00011858,2]
[323610409,1714117843998,-500.0,0.00011858,2]
[323610410,1714117844007,-500.0,0.00011858,2]
[323610411,1714117844017,-498.4964962,0.00011858,2]
[323610412,1714117844026,-500.0,0.00011858,2]
[323610413,1714117844036,-500.0,0.00011858,2]
[323610414,1714117844046,-500.0,0.00011858,2]
[323610415,1714117844055,-500.0,0.00011858,2]
[323610416,1714117844064,-500.0,0.00011858,2]
[323610417,1714117844074,-500.0,0.00011858,2]
[323610418,1714117844082,-500.0,0.00011858,2]
[323610419,1714117844092,-500.0,0.00011858,2]
[323610420,1714117844101,-500.0,0.00011858,2]
[323610421,1714117844111,-500.0,0.00011858,2]
[323610422,1714117844121,-500.0,0.00011858,2]
[323610423,1714117844132,-500.0,0.00011858,2]
[323610424,1714117844142,-500.0,0.00011858,2]
[323610425,1714117844151,-500.0,0.00011858,2]
[323610426,1714117844160,-840.16,0.00011858,2]
[323610427,1714117844169,-500.0,0.00011858,2]
[323610428,1714117844179,-500.0,0.00011858,2]
[323610429,1714117844188,-500.0,0.00011858,2]
[323610430,1714117844197,-608.68,0.00011858,2]
[323610431,1714117844206,-500.0,0.00011858,2]
[323610432,1714117844215,-1180.83,0.00011858,2]
[323610433,1714117844224,-413.98394326,0.00011858,2]
[323610434,1714117844234,-500.0,0.00011858,2]
[323610435,1714117844246,-500.0,0.00011858,2]
[323610436,1714117844255,-500.0,0.00011858,2]
[323610437,1714117844266,-524.49,0.00011858,2]
[323610438,1714117844276,-500.0,0.00011858,2]
[323610439,1714117844287,-784.82,0.00011858,2]
[323610440,1714117844297,-500.0,0.00011858,2]
[323610441,1714117844306,-500.0,0.00011858,2]
[323610442,1714117844315,-500.0,0.00011858,2]
[323610443,1714117844325,-514.94639599,0.00011858,2]
[323610444,1714117844335,-500.0,0.00011858,2]
[323610445,1714117844346,-500.0,0.00011858,2]
[323610446,1714117844355,-500.0,0.00011858,2]
[323610447,1714117844365,-500.0,0.00011858,2]
[323610448,1714117844373,-500.0,0.00011858,2]
[323610449,1714117844382,-500.0,0.00011858,2]
[323610450,1714117844392,-500.0,0.00011858,2]
[323610451,1714117844400,-501.04,0.00011858,2]
[323610452,1714117844410,-500.0,0.00011858,2]
[323610453,1714117844419,-500.0,0.00011858,2]
[323610454,1714117844428,-1452.13,0.00011858,2]
[323610455,1714117844437,-500.0,0.00011858,2]
[323610456,1714117844448,-500.0,0.00011858,2]
[323610457,1714117844457,-500.0,0.00011858,2]
[323610458,1714117844466,-500.0,0.00011858,2]
[323610459,1714117844474,-500.0,0.00011858,2]
[323610460,1714117844483,-500.0,0.00011858,2]
[323610461,1714117844493,-500.0,0.00011858,2]
[323610462,1714117844504,-500.0,0.00011858,2]
[323610463,1714117844515,-500.0,0.00011858,2]
[323610464,1714117844525,-500.0,0.00011858,2]
[323610465,1714117844534,-500.0,0.00011858,2]
[323610466,1714117844544,-1616.62,0.00011858,2]
[323610467,1714117844554,-500.0,0.00011858,2]
[323610468,1714117844563,-500.0,0.00011858,2]
[323610469,1714117844572,-500.0,0.00011858,2]
[323610470,1714117844581,-500.0,0.00011858,2]
[323610471,1714117844590,-1380.9465143,0.00011992,2]
[323610472,1714117844601,-13483.1586554,0.00011992,2]
[323610473,1714117844610,-1062.0,0.00012,2]
[323610474,1714117844619,-2750.0,0.00012,3]
[323610475,1714117844628,-1769.38629,0.00012,2]
[323610476,1714117844637,-200.91,0.00012055,2]
[323610477,1714117844646,-3071.20810051,0.00012084,2]
[323610478,1714117844656,-5000.0,0.00012085,2]
[323610479,1714117844665,-500.0,0.00012086,2]
[323610480,1714117844674,-710.22,0.00012086,2]
[323610481,1714117844683,-500.0,0.00012086,2]
[323610482,1714117844692,-500.0,0.00012086,2]
[323610483,1714117844701,-629.69,0.00012086,2]
[323610484,1714117844710,-802.87,0.00012086,2]
[323610485,1714117844720,-1199.62,0.00012087,2]
[323610486,1714117844730,-19999.99,0.00012087,2]
[323610487,1714117844739,-8252.54,0.00012087,2]
[323610488,1714117844748,-15069.28,0.00012087,2]
[323610489,1714117844757,-502.33420002,0.00012129,2]
[323610490,1714117844768,-500.0,0.0001213,2]
[323610491,1714117844778,-834.81,0.0001213,2]
[323610492,1714117844787,-645.2,0.0001213,2]
[323610493,1714117844796,-500.0,0.0001213,2]
[323610494,1714117844806,-563.43,0.0001213,2]
[323610495,1714117844815,-500.0,0.0001213,2]
[323610496,1714117844824,-3278.27,0.0001213,2]
[323610497,1714117844833,-506.32731382,0.0001213,2]
[323610498,1714117844842,-500.0,0.0001213,2]
[323610499,1714117844852,-500.0,0.0001213,2]
[323610500,1714117844861,-331.86569561,0.00012131,2]
[323610501,1714117844870,-198.8,0.00012131,2]
[323610502,1714117844879,-500.0,0.00012131,2]
[323610503,1714117844888,-473.78,0.00012131,2]
[323610504,1714117844898,-500.0,0.00012132,2]
[323610505,1714117844907,-150.0,0.00012132,2]
[323610506,1714117844916,-500.0,0.00012132,2]
[323610507,1714117844926,-500.0,0.00012132,2]
[323610508,1714117844935,-563.65,0.00012132,2]
[323610509,1714117844945,-500.05,0.00012132,2]
[323610510,1714117844954,-444.05,0.00012132,2]
[323610511,1714117844963,-500.0,0.00012132,2]
[323610512,1714117844971,-320.4,0.00012132,2]
[323610513,1714117844981,-500.0,0.00012132,2]
[323610514,1714117844990,-152.78417975,0.00012132,2]
[323610515,1714117844999,-500.0,0.00012132,2]
[323610516,1714117845008,-477.3,0.00012132,2]
[323610517,1714117845018,-500.0,0.00012132,2]
[323610518,1714117845028,-345.39602344,0.00012132,2]
[323610519,1714117845037,-500.0,0.00012132,2]
[323610520,1714117845076,-500.0,0.00012132,2]
[323610521,1714117845085,-840.16,0.00012132,2]
[323610522,1714117845094,-286.16512854,0.00012132,2]
[323610523,1714117845105,-500.0,0.00012132,2]
[323610524,1714117845116,-608.68,0.00012132,2]
[323610525,1714117845125,-500.0,0.00012132,2]
[323610526,1714117845134,-1180.83,0.00012132,2]
[323610527,1714117845145,-500.0,0.00012132,2]
[323610528,1714117845154,-500.0,0.00012132,2]
[323610529,1714117845162,-500.0,0.00012132,2]
[323610530,1714117845172,-524.49,0.00012132,2]
[323610531,1714117845181,-784.82,0.00012132,2]
[323610532,1714117845190,-500.0,0.00012132,2]
[323610533,1714117845199,-500.0,0.00012132,2]
[323610534,1714117845208,-500.0,0.00012132,2]
[323610535,1714117845218,-500.0,0.00012132,2]
[323610536,1714117845227,-1452.13,0.00012132,2]
[323610537,1714117845236,-500.0,0.00012132,2]
[323610538,1714117845248,-1616.62,0.00012132,2]
[323610539,1714117845258,-500.0,0.00012132,2]
[323610540,1714117845268,-166.45380696,0.00012132,2]
[323610541,1714117845277,-193.52,0.00012132,2]
[323610542,1714117845286,-419.25,0.00012192,2]
[323610543,1714117845295,-150.0,0.00012192,2]
[323610544,1714117845304,-419.25,0.00012192,2]
[323610545,1714117845315,-150.0,0.00012192,2]
[323610546,1714117845326,-419.25,0.00012192,2]
[323610547,1714117845335,-150.0,0.00012192,2]
[323610548,1714117845344,-150.0,0.00012192,2]
[323610549,1714117845354,-523.0,0.00012274,2]
[323610550,1714117845364,-420.0,0.00012274,2]
[323610551,1714117845373,-1160.0,0.00012301,2]
[323610552,1714117845382,-1141.9919926,0.0001233,2]
[323610553,1714117845391,-970.0,0.00012338,2]
[323610554,1714117845401,-462.0,0.00012338,2]
[323610555,1714117845411,-1394.0,0.00012338,2]
[323610556,1714117845420,-1228.0,0.00012338,2]
[323610557,1714117845429,-358.534,0.00012338,2]
[323610558,1714117845438,-399.146,0.00012338,2]
[323610559,1714117845446,-420.0,0.00012338,2]
[323610560,1714117845455,-1475.0,0.00012338,2]
[323610561,1714117845464,-214.0,0.00012338,2]
[323610562,1714117845473,-1641.0,0.00012338,2]
[323610563,1714117845482,-443.0,0.00012338,2]
[323610564,1714117845491,-1140.0,0.00012338,2]
[323610565,1714117845501,-656.534,0.00012338,2]
[323610566,1714117845510,-442.52882237,0.00012346,2]
[323610567,1714117845522,-500.0,0.0001236,2]
[323610568,1714117845531,-710.22,0.0001236,2]
[323610569,1714117845540,-500.0,0.0001236,2]
[323610570,1714117845550,-500.0,0.0001236,2]
[323610572,1714117845559,-629.69,0.0001236,2]
[323610574,1714117845568,-802.87,0.0001236,2]
[323610575,1714117845577,-11150.0764587,0.0001239,2]
[323610576,1714117845586,-500.0,0.00012404,2]
[323610577,1714117845595,-834.81,0.00012404,2]
[323610578,1714117845604,-645.2,0.00012404,2]
[323610579,1714117845614,-500.0,0.00012404,2]
[323610580,1714117845623,-563.43,0.00012404,2]
[323610581,1714117845633,-500.0,0.00012404,2]
[323610582,1714117845642,-3278.27,0.00012404,2]
[323610583,1714117845651,-500.0,0.00012404,2]
[323610584,1714117845661,-500.0,0.00012404,2]
[323610585,1714117845670,-500.0,0.00012405,2]
[323610586,1714117845679,-500.0,0.00012405,2]
[323610587,1714117845688,-500.0,0.00012405,2]
[323610588,1714117845698,-449.8239764,0.00012405,2]
[323610589,1714117845707,-500.0,0.00012405,2]
[323610590,1714117845717,-500.0,0.00012405,2]
[323610591,1714117845726,-848.64,0.00012405,2]
[323610592,1714117845736,-622.92,0.00012405,2]
[323610593,1714117845745,-500.0,0.00012405,2]
[323610594,1714117845755,-1238.61,0.00012405,2]
[323610595,1714117845767,-501.07906505,0.00012405,2]
[323610596,1714117845777,-500.0,0.00012405,2]
[323610597,1714117845786,-589.20732585,0.00012405,2]
[323610598,1714117845795,-500.0,0.00012405,2]
[323610599,1714117845804,-500.0,0.00012405,2]
[323610600,1714117845814,-500.0,0.00012405,2]
[323610601,1714117845823,-500.0,0.00012405,2]
[323610602,1714117845832,-500.0,0.00012405,2]
[323610603,1714117845842,-500.0,0.00012405,2]